bitfinex/quotes_BTCUSD_20240803
["timestamp","ask_amount","ask_price","bid_price","bid_amount"]
[1722714886764,0.1586,60441.0,60429.0,0.08291805]
[1722714886765,0.1,60439.0,60429.0,0.08291805]
[1722714886970,0.00157439,60437.0,60429.0,0.08291805]
[1722714887142,0.26575089,60437.0,60429.0,0.08291805]
[1722714887606,0.26575089,60437.0,60431.0,0.330954]
[1722714887607,0.1,60437.0,60431.0,0.330954]
[1722714887819,0.1,60437.0,60429.0,0.08291805]
[1722714887978,0.00157439,60447.0,60436.0,0.08291805]
[1722714888182,0.16575089,60446.0,60436.0,0.08291805]
[1722714888364,0.1586,60452.0,60437.0,0.16546]
[1722714888365,0.33636131,60452.0,60437.0,0.16546]
[1722714888560,0.165433,60448.0,60438.0,0.1977]
[1722714888773,0.16575089,60447.0,60438.0,0.19248941]
[1722714888983,0.16575089,60447.0,60430.0,0.1631]
[1722714889184,0.16575089,60447.0,60424.0,0.1631]
[1722714889185,0.2224,60441.0,60424.0,0.1631]
[1722714889436,0.16575089,60440.0,60424.0,0.1631]
[1722714889590,0.165469,60435.0,60424.0,0.1631]
[1722714889789,0.165469,60435.0,60426.0,0.165491]
[1722714889790,0.16575089,60435.0,60426.0,0.165491]
[1722714889972,0.1,60439.0,60428.0,0.08291805]
[1722714890175,0.16575089,60438.0,60426.0,0.165491]
[1722714890396,0.1,60437.0,60425.0,0.1688035]
[1722714890625,0.26575089,60437.0,60425.0,0.1688035]
[1722714890815,0.26575089,60437.0,60425.0,0.0033095]
[1722714891025,0.43121189,60437.0,60424.0,0.1631]
[1722714891413,0.26575089,60437.0,60425.0,0.0033095]
[1722714891617,0.165441,60445.0,60431.0,0.165476]
[1722714891818,0.26575089,60444.0,60432.0,0.1977]
[1722714892023,0.011,60437.0,60432.0,0.20100927]
[1722714892188,0.011,60437.0,60434.0,0.165467]
[1722714892580,0.011,60437.0,60432.0,0.20100927]
[1722714892581,0.011,60437.0,60432.0,0.1977]
[1722714892780,0.16575089,60444.0,60432.0,0.1977]
[1722714892781,0.165448,60442.0,60432.0,0.1977]
[1722714892992,0.005,60437.0,60425.0,0.1977]
[1722714893199,0.17075089,60437.0,60425.0,0.1977]
[1722714893399,0.33121189,60437.0,60425.0,0.1977]
[1722714893584,0.16575089,60437.0,60425.0,0.1977]
[1722714893804,0.17075089,60437.0,60425.0,0.1977]
[1722714893977,0.165464,60436.0,60425.0,0.1977]
[1722714894184,0.33621289,60437.0,60425.0,0.1977]
[1722714894388,0.165464,60436.0,60425.0,0.1977]
[1722714894623,0.33621189,60437.0,60425.0,0.1977]
[1722714894833,0.165464,60436.0,60425.0,0.1977]
[1722714895007,0.33621289,60437.0,60425.0,0.1977]
[1722714895235,0.33621289,60437.0,60420.0,0.799412]
[1722714895236,0.489539,60434.0,60420.0,0.4684]
[1722714895413,0.16575089,60433.0,60420.0,0.4684]
[1722714895588,0.165483,60430.0,60420.0,0.4684]
[1722714895786,0.165485,60429.0,60420.0,0.4684]
[1722714895985,0.165483,60429.0,60420.0,0.4684]
[1722714896191,0.165489,60427.0,60418.0,0.1977]
[1722714896397,0.16575089,60428.0,60418.0,0.363213]
[1722714896591,0.16575089,60428.0,60418.0,0.1977]
[1722714896947,0.33123789,60428.0,60418.0,0.1977]
[1722714897138,0.16575089,60428.0,60418.0,0.1977]
[1722714897291,0.008,60429.0,60419.0,0.16551]
[1722714897659,0.008,60429.0,60420.0,0.165507]
[1722714897779,0.008,60429.0,60419.0,0.165509]
[1722714898292,0.008,60429.0,60422.0,0.165501]
[1722714898293,0.009,60429.0,60422.0,0.165501]
[1722714898525,0.001,60429.0,60421.0,0.165504]
[1722714898701,0.001,60429.0,60422.0,0.165502]
[1722714898915,0.16575089,60432.0,60420.0,0.331012]
[1722714898916,0.007,60428.0,60420.0,0.165506]
[1722714899115,0.007,60428.0,60421.0,0.165504]
[1722714899320,0.007,60428.0,60420.0,0.165507]
[1722714899568,0.007,60428.0,60421.0,0.165505]
[1722714899708,0.001,60429.0,60421.0,0.165505]
[1722714899921,0.008,60429.0,60420.0,0.165507]
[1722714900111,0.009,60429.0,60421.0,0.165505]
[1722714900311,0.009,60429.0,60421.0,0.0033099]
[1722714900624,0.009,60429.0,60418.0,0.1977]
[1722714900831,0.16575089,60428.0,60414.0,0.17241]
[1722714901033,0.330987,60426.0,60414.0,0.17241]
[1722714901182,0.3652,60424.0,60414.0,0.00931]
[1722714901390,0.33125089,60423.0,60414.0,0.00931]
[1722714901589,0.165502,60422.0,60414.0,0.00931]
[1722714901802,0.16575089,60422.0,60414.0,0.00931]
[1722714901986,0.331012,60421.0,60414.0,0.00931]
[1722714902153,0.331022,60419.0,60414.0,0.00931]
[1722714902353,0.26575089,60418.0,60414.0,0.00931]
[1722714902753,0.26575089,60418.0,60415.0,0.00083]
[1722714903006,0.331098,60405.0,60398.0,0.0001]
[1722714903179,1.19099789,60405.0,60398.0,0.0001]
[1722714903378,1.52209589,60405.0,60398.0,0.0001]
[1722714903583,1.21399789,60405.0,60398.0,0.0001]
[1722714904010,1.94947181,60405.0,60398.0,0.0001]
[1722714904208,1.93947181,60405.0,60398.0,0.0001]
[1722714904668,1.92949542,60405.0,60398.0,0.0001]
[1722714904837,1.93049542,60405.0,60398.0,0.0001]
[1722714905086,1.92049542,60405.0,60398.0,0.0001]
[1722714905274,0.66149989,60405.0,60398.0,0.0001]
[1722714905639,1.33669589,60405.0,60398.0,0.0001]
[1722714906091,1.98711194,60405.0,60398.0,0.0001]
[1722714906315,1.58709589,60405.0,60398.0,0.0001]
[1722714906520,1.55909589,60405.0,60398.0,0.0001]
[1722714906894,1.89019389,60405.0,60398.0,0.0001]
[1722714907129,1.54509589,60405.0,60398.0,0.0001]
[1722714907300,1.87619389,60405.0,60398.0,0.0001]
[1722714907562,1.54509589,60405.0,60398.0,0.0001]
[1722714907758,0.99159789,60405.0,60398.0,0.0001]
[1722714908037,1.33889589,60405.0,60398.0,0.0001]
[1722714908457,1.35289589,60405.0,60398.0,0.0001]
[1722714908657,1.69799389,60405.0,60398.0,0.0001]
[1722714909063,1.33889589,60405.0,60398.0,0.0001]
[1722714909219,1.37842026,60405.0,60398.0,0.0001]
[1722714909427,2.06029389,60405.0,60398.0,0.0001]
[1722714909830,2.08429389,60405.0,60398.0,0.0001]
[1722714910037,2.07029389,60405.0,60398.0,0.0001]
[1722714910246,2.06029389,60405.0,60398.0,0.0001]
[1722714910815,0.827827,60399.0,60398.0,0.0001]
[1722714911033,1.11657789,60399.0,60398.0,0.0001]
[1722714911159,1.44770889,60399.0,60398.0,0.0001]
[1722714912325,0.28875089,60399.0,60398.0,0.0001]
[1722714912479,0.76244689,60399.0,60398.0,0.0001]
[1722714912680,0.27975089,60399.0,60398.0,0.0001]
[1722714912880,0.77644689,60399.0,60398.0,0.0001]
[1722714913076,0.44531589,60399.0,60398.0,0.0001]
[1722714913306,0.142,60399.0,60398.0,0.0001]
[1722714913505,0.042,60399.0,60398.0,0.0001]
[1722714913659,0.014,60399.0,60398.0,0.0001]
[1722714914072,0.35931589,60399.0,60398.0,0.0001]
[1722714914359,0.45931589,60399.0,60398.0,0.0001]
[1722714914496,0.128,60399.0,60398.0,0.0001]
[1722714914698,0.028,60399.0,60398.0,0.3677]
[1722714915248,0.028,60399.0,60398.0,0.0001]
[1722714915547,0.17975089,60399.0,60398.0,0.0001]
[1722714915843,0.014,60399.0,60398.0,0.0001]
[1722714916543,0.009,60399.0,60398.0,0.0001]
[1722714917046,0.023,60399.0,60398.0,0.0001]
[1722714917240,0.014,60399.0,60398.0,0.0001]
[1722714917444,0.34531589,60399.0,60398.0,0.0001]
[1722714917620,0.17975089,60399.0,60398.0,0.0001]
[1722714918685,0.19175089,60399.0,60398.0,0.0001]
[1722714918890,0.026,60399.0,60398.0,0.0001]
[1722714919016,0.014,60399.0,60398.0,0.0001]
[1722714919419,0.023,60399.0,60398.0,0.0001]
[1722714919619,0.023,60399.0,60398.0,0.864404]
[1722714919846,0.023,60399.0,60398.0,1.19554]
[1722714920043,0.023,60399.0,60398.0,1.526676]
[1722714920292,0.023,60399.0,60398.0,1.536676]
[1722714920411,0.014,60399.0,60398.0,1.536676]
[1722714920612,0.05,60400.0,60399.0,1.316158]
[1722714920810,0.05,60400.0,60399.0,1.72230889]
[1722714921011,0.05,60400.0,60399.0,2.05343989]
[1722714921215,0.2062,60429.0,60399.0,2.05343989]
[1722714921216,0.330933,60436.0,60414.0,0.3676]
[1722714921425,0.553358,60431.0,60414.0,0.3676]
[1722714921646,0.2224,60431.0,60414.0,0.3676]
[1722714921867,0.16575089,60430.0,60414.0,0.3676]
[1722714922067,0.16575089,60430.0,60417.0,0.08291805]
[1722714922271,0.16575089,60430.0,60414.0,0.3676]
[1722714922272,0.16575089,60430.0,60419.0,0.331018]
[1722714922500,0.16575089,60430.0,60414.0,0.3676]
[1722714922851,0.16575089,60430.0,60422.0,0.1655]
[1722714923097,0.014,60430.0,60420.0,0.00330966]
[1722714923309,0.014,60430.0,60421.0,0.331008]
[1722714923519,0.014,60431.0,60424.0,0.165496]
[1722714923728,0.014,60430.0,60425.0,0.165493]
[1722714923984,0.00091301,60437.0,60425.0,0.165493]
[1722714923985,0.16575089,60436.0,60425.0,0.165493]
[1722714924200,0.16575089,60436.0,60425.0,0.165492]
[1722714924401,0.16575089,60436.0,60427.0,0.165488]
[1722714924528,0.16575089,60436.0,60426.0,0.3619]
[1722714924732,0.165473,60433.0,60426.0,0.3619]
[1722714924994,0.165473,60433.0,60420.0,0.8303]
[1722714924995,0.165479,60431.0,60420.0,0.8303]
[1722714925116,0.16575089,60430.0,60420.0,0.995807]
[1722714925326,0.17975089,60430.0,60421.0,0.165505]
[1722714925546,0.18975089,60430.0,60420.0,0.8303]
[1722714925746,0.18975089,60430.0,60421.0,0.165504]
[1722714925945,0.18975089,60430.0,60426.0,0.001]
[1722714926151,0.48983089,60430.0,60420.0,0.6707]
[1722714926354,0.32435089,60430.0,60420.0,0.4684]
[1722714926555,0.32435089,60430.0,60421.0,0.001]
[1722714926556,0.1,60429.0,60421.0,0.001]
[1722714926816,0.16575089,60428.0,60421.0,0.001]
[1722714926976,0.33123689,60428.0,60421.0,0.001]
[1722714927191,0.16575089,60428.0,60421.0,0.001]
[1722714927384,0.1,60429.0,60421.0,0.24842205]
[1722714927581,0.165469,60435.0,60421.0,0.24842205]
[1722714927582,0.112585,60434.0,60421.0,0.165502]
[1722714927927,0.112585,60434.0,60420.0,0.4684]
[1722714927928,0.16575089,60433.0,60420.0,0.4684]
[1722714928125,0.1,60432.0,60420.0,0.4684]
[1722714928333,0.1,60432.0,60420.0,0.633906]
[1722714928538,0.1,60432.0,60420.0,0.4684]
[1722714928741,0.009,60429.0,60420.0,0.4684]
[1722714928917,0.009,60429.0,60426.0,0.001]
[1722714929178,0.014,60430.0,60426.0,0.001]
[1722714929349,0.16575089,60430.0,60420.0,0.4684]
[1722714929516,0.1,60429.0,60415.0,0.1596]
[1722714929717,0.1,60429.0,60418.0,0.165512]
[1722714929935,0.165486,60428.0,60415.0,0.1596]
[1722714930253,0.1,60429.0,60416.0,0.165518]
[1722714930254,0.16575089,60427.0,60416.0,0.165518]
[1722714930497,0.16575089,60427.0,60416.0,0.16882799]
[1722714930891,0.16575089,60427.0,60420.0,0.001]
[1722714931587,0.49673089,60427.0,60421.0,0.00580871]
[1722714931791,0.165493,60426.0,60421.0,0.00580871]
[1722714931963,0.16706939,60425.0,60420.0,0.001]
[1722714932164,0.00157439,60425.0,60420.0,0.001]
[1722714932412,0.16575089,60426.0,60421.0,0.00580871]
[1722714932800,0.1655,60423.0,60415.0,0.1596]
[1722714932987,0.16575089,60422.0,60414.0,0.2023]
[1722714933234,0.16575089,60422.0,60416.0,0.00683551]
[1722714933359,0.00157439,60421.0,60416.0,0.001]
[1722714933554,0.331026,60419.0,60402.0,0.01230963]
[1722714933759,0.2224,60415.0,60401.0,0.2037]
[1722714933969,0.16732528,60414.0,60401.0,0.369259]
[1722714934449,0.165534,60411.0,60401.0,0.2037]
[1722714934619,0.00157439,60410.0,60401.0,0.2037]
[1722714934820,0.00157439,60413.0,60401.0,0.20701084]
[1722714935025,0.16575089,60412.0,60401.0,0.2037]
[1722714935221,0.00157439,60411.0,60402.0,0.165556]
[1722714935441,0.00157439,60411.0,60403.0,0.165554]
[1722714935603,0.00157439,60411.0,60402.0,0.08291805]
[1722714935921,0.005,60413.0,60407.0,0.331085]
[1722714936480,0.014,60415.0,60414.0,0.165524]
[1722714936689,0.014,60415.0,60414.0,1.192822]
[1722714936935,0.00091301,60425.0,60417.0,0.165515]
[1722714937141,0.00091301,60425.0,60418.0,0.165513]
[1722714937295,0.00091301,60425.0,60416.0,0.33434503]
[1722714937296,0.00091301,60425.0,60417.0,0.08291805]
[1722714937452,0.00091301,60425.0,60419.0,0.16551]
[1722714937655,0.00091301,60425.0,60414.0,0.3652]
[1722714937910,0.00091301,60425.0,60424.0,0.165497]
[1722714938108,0.00091301,60425.0,60424.0,0.861691]
[1722714938459,0.00091301,60425.0,60424.0,1.523679]
[1722714938651,0.00091301,60425.0,60424.0,1.69942989]
[1722714938876,0.00091301,60425.0,60424.0,1.68942989]
[1722714939091,0.00091301,60425.0,60424.0,1.69942989]
[1722714939324,0.00091301,60425.0,60424.0,2.03042389]
[1722714939469,0.00091301,60425.0,60424.0,2.15042389]
[1722714939873,0.00191301,60425.0,60424.0,2.15142389]
[1722714940279,0.00191301,60425.0,60424.0,2.28898024]
[1722714940705,0.00191301,60425.0,60424.0,2.29098024]
[1722714940906,0.00291301,60425.0,60424.0,2.29098024]
[1722714941080,0.00191301,60425.0,60424.0,2.28998024]
[1722714941299,0.00191301,60425.0,60424.0,2.15242389]
[1722714941508,0.00291301,60425.0,60424.0,2.29894259]
[1722714941894,0.00291301,60425.0,60424.0,2.29694259]
[1722714942090,0.00291301,60425.0,60424.0,2.62793659]
[1722714942516,0.00091301,60437.0,60436.0,1.168248]
[1722714942742,0.00091301,60437.0,60436.0,1.89981694]
[1722714942955,0.00091301,60437.0,60436.0,2.23647326]
[1722714943703,0.00091301,60437.0,60436.0,2.41067326]
[1722714944039,0.00191301,60437.0,60436.0,2.87913104]
[1722714944241,0.00191301,60437.0,60436.0,2.88113104]
[1722714944441,0.00291301,60437.0,60436.0,2.89513104]
[1722714944619,0.00191301,60437.0,60436.0,2.89513104]
[1722714944845,0.00191301,60437.0,60436.0,2.87913104]
[1722714944846,0.00091301,60437.0,60436.0,2.87913104]
[1722714945167,0.00091301,60437.0,60436.0,2.89313104]
[1722714945168,0.00191301,60437.0,60436.0,2.89313104]
[1722714945309,0.00291301,60437.0,60436.0,2.89313104]
[1722714945537,0.4990827,60459.0,60458.0,1.157828]
[1722714945759,0.0024874,60475.0,60466.0,0.330761]
[1722714945964,0.00091301,60475.0,60468.0,0.330748]
[1722714946176,0.00091301,60475.0,60467.0,0.0055623]
[1722714946372,0.00091301,60475.0,60470.0,0.16537]
[1722714946576,0.00091301,60475.0,60468.0,0.330748]
[1722714946577,0.00091301,60475.0,60468.0,0.00555695]
[1722714946777,0.00091301,60475.0,60464.0,0.330773]
[1722714946978,0.00091301,60475.0,60469.0,0.0055516]
[1722714947218,0.01491301,60475.0,60468.0,0.331752]
[1722714947439,0.01491301,60475.0,60470.0,0.00554625]
[1722714947638,0.01491301,60475.0,60469.0,0.0055516]
[1722714947873,0.00091301,60475.0,60471.0,0.00554089]
[1722714948094,0.00091301,60475.0,60470.0,0.17091625]
[1722714948270,0.01491301,60475.0,60472.0,0.00474475]
[1722714948478,0.01491301,60475.0,60471.0,0.00554089]
[1722714948627,0.01491301,60475.0,60473.0,0.00474016]
[1722714948835,0.02491301,60475.0,60472.0,0.00474475]
[1722714949065,0.02491301,60475.0,60474.0,0.00473558]
[1722714949288,0.02491301,60475.0,60469.0,0.002]
[1722714949533,0.01091301,60475.0,60469.0,0.331747]
[1722714949715,0.02191301,60475.0,60470.0,0.16637]
[1722714949977,0.01191301,60475.0,60470.0,0.00654625]
[1722714950185,0.00091301,60475.0,60470.0,0.00554625]
[1722714950355,0.01191301,60475.0,60474.0,0.001]
[1722714950695,0.00091301,60475.0,60471.0,0.00554089]
[1722714950899,0.165368,60471.0,60470.0,0.001]
[1722714951154,0.596105,60471.0,60470.0,0.001]
[1722714951363,0.596105,60471.0,60451.0,0.3629]
[1722714951364,0.1,60471.0,60451.0,0.3629]
[1722714951703,0.1,60471.0,60443.0,0.01]
[1722714951704,0.10157439,60470.0,60446.0,0.489769]
[1722714951903,0.165388,60464.0,60450.0,0.165425]
[1722714952110,0.165391,60463.0,60449.0,0.165428]
[1722714952262,0.00157439,60462.0,60446.0,0.165434]
[1722714952594,0.00157439,60462.0,60447.0,0.165432]
[1722714952595,0.165396,60461.0,60447.0,0.165432]
[1722714952801,0.00157439,60460.0,60450.0,0.165424]
[1722714953032,0.00157439,60463.0,60451.0,0.00330782]
[1722714953245,0.10157439,60465.0,60457.0,0.165405]
[1722714953450,0.1,60465.0,60452.0,0.165419]
[1722714953665,0.1,60465.0,60452.0,0.16542]
[1722714953864,0.007,60461.0,60450.0,0.33085]
[1722714953999,0.007,60461.0,60457.0,0.165406]
[1722714954217,0.1,60465.0,60457.0,0.165406]
[1722714954421,0.112,60465.0,60457.0,0.001]
[1722714954620,0.112,60465.0,60449.0,0.165428]
[1722714954621,0.002,60462.0,60449.0,0.165428]
[1722714955075,0.007,60461.0,60450.0,0.00430814]
[1722714955284,0.007,60461.0,60454.0,0.165414]
[1722714955435,0.007,60461.0,60452.0,0.33084]
[1722714955640,0.007,60461.0,60454.0,0.165413]
[1722714956088,0.007,60461.0,60458.0,0.165402]
[1722714956238,0.001,60461.0,60457.0,0.165406]
[1722714956439,0.001,60461.0,60459.0,0.00480439]
[1722714957052,0.001,60461.0,60457.0,0.165406]
[1722714957278,0.008,60461.0,60460.0,0.00479981]
[1722714957501,0.001,60461.0,60456.0,0.165408]
[1722714957799,0.001,60461.0,60459.0,0.001]
[1722714958016,0.008,60461.0,60459.0,0.001]
[1722714958154,0.007,60461.0,60460.0,0.00479981]
[1722714958680,0.008,60461.0,60459.0,0.001]
[1722714958888,0.34418174,60468.0,60460.0,0.00479981]
[1722714958889,0.330766,60466.0,60460.0,0.00479981]
[1722714959093,0.330786,60462.0,60442.0,0.1589]
[1722714959327,0.101,60461.0,60444.0,0.204]
[1722714959471,0.101,60461.0,60448.0,0.165429]
[1722714959676,0.00157439,60460.0,60448.0,0.165429]
[1722714959877,0.16575089,60459.0,60449.0,0.00485029]
[1722714960081,0.00157439,60458.0,60449.0,0.00485029]
[1722714960673,0.00157439,60458.0,60444.0,0.28691805]
[1722714960674,0.16541,60456.0,60444.0,0.08291805]
[1722714960873,0.00157439,60455.0,60448.0,0.001]
[1722714961075,0.00157439,60455.0,60450.0,0.08291805]
[1722714961279,0.00157439,60460.0,60451.0,0.00423597]
[1722714961482,0.1,60463.0,60451.0,0.00423597]
[1722714961483,0.014,60458.0,60451.0,0.00423597]
[1722714961759,0.014,60458.0,60452.0,0.330838]
[1722714962042,0.014,60458.0,60457.0,0.24832405]
[1722714962263,0.014,60458.0,60457.0,0.57913705]
[1722714962424,0.014,60458.0,60457.0,0.00481357]
[1722714962585,0.014,60458.0,60448.0,0.002]
[1722714962791,0.014,60458.0,60457.0,0.00421188]
[1722714963033,0.014,60458.0,60452.0,0.001]
[1722714963034,0.021,60458.0,60452.0,0.001]
[1722714963243,0.007,60458.0,60457.0,0.00421188]
[1722714963438,0.007,60458.0,60452.0,0.00430813]
[1722714963611,0.007,60458.0,60457.0,0.17021957]
[1722714963612,0.013,60458.0,60457.0,0.17021957]
[1722714963822,0.01,60458.0,60452.0,0.165419]
[1722714964024,0.01,60458.0,60457.0,0.00581357]
[1722714964229,0.01,60458.0,60457.0,0.001]
[1722714964230,0.02,60458.0,60457.0,0.001]
[1722714964433,0.02,60458.0,60457.0,0.00421188]
[1722714964638,0.032,60458.0,60452.0,0.001]
[1722714964837,0.032,60458.0,60457.0,0.00481357]
[1722714965043,0.022,60458.0,60457.0,0.00481357]
[1722714965249,0.032,60458.0,60457.0,0.001]
[1722714965472,0.032,60458.0,60457.0,0.00521188]
[1722714965713,0.022,60458.0,60457.0,0.001]
[1722714966032,0.028,60458.0,60457.0,0.001]
[1722714966226,0.73465489,60458.0,60457.0,0.001]
[1722714966440,1.09445889,60458.0,60438.0,0.1663]
[1722714966746,0.26575089,60457.0,60452.0,0.001]
[1722714967148,0.34866894,60457.0,60436.0,1.1471]
[1722714967332,0.165422,60452.0,60436.0,1.1471]
[1722714967535,0.33086,60449.0,60436.0,1.1471]
[1722714967735,0.26575089,60451.0,60436.0,1.1471]
[1722714967736,0.496335,60443.0,60436.0,0.7838]
[1722714967940,0.33089,60443.0,60431.0,0.4684]
[1722714968239,0.00157439,60442.0,60431.0,0.4684]
[1722714968394,0.330904,60441.0,60426.0,0.4684]
[1722714968614,0.1682,60435.0,60426.0,0.4684]
[1722714968790,0.2073,60431.0,60426.0,0.4684]
[1722714968991,0.00157439,60430.0,60426.0,0.4684]
[1722714969415,0.165488,60428.0,60426.0,0.4684]
[1722714969609,0.00157439,60427.0,60417.0,1.2617]
[1722714969950,0.00157439,60427.0,60426.0,0.001]
[1722714970147,0.00157439,60430.0,60426.0,0.001]
[1722714970352,1.16139289,60427.0,60426.0,0.001]
[1722714970784,1.26139289,60427.0,60426.0,0.001]
[1722714970973,0.165497,60424.0,60416.0,0.4684]
[1722714971112,0.16732528,60423.0,60416.0,0.4684]
[1722714971932,0.165502,60422.0,60416.0,0.4684]
[1722714972134,0.16708039,60421.0,60416.0,0.4684]
[1722714972314,0.00157439,60421.0,60416.0,0.4684]
[1722714972720,0.16708039,60421.0,60416.0,0.4684]
[1722714973088,0.00157439,60421.0,60416.0,0.4684]
[1722714973264,0.00157439,60419.0,60416.0,0.4694]
[1722714973465,0.00157439,60417.0,60416.0,0.4694]
[1722714973663,0.66387328,60417.0,60416.0,0.4684]
[1722714973871,0.99333089,60417.0,60416.0,0.4684]
[1722714974062,0.99333089,60417.0,60401.0,0.4684]
[1722714974063,0.00157439,60416.0,60401.0,0.4684]
[1722714974227,0.00157439,60413.0,60402.0,0.08291805]
[1722714974426,0.00157439,60413.0,60410.0,0.3633]
[1722714974677,0.00157439,60416.0,60415.0,0.827607]
[1722714974875,0.006,60421.0,60420.0,0.496524]
[1722714975074,0.006,60421.0,60420.0,0.08291805]
[1722714975364,0.1682,60443.0,60427.0,0.330974]
[1722714975641,0.49750831,60428.0,60424.0,0.799394]
[1722714975972,0.16732528,60442.0,60421.0,0.3633]
[1722714975973,0.2224,60436.0,60421.0,0.197]
[1722714976175,0.3755,60434.0,60416.0,0.24921805]
[1722714976389,0.001,60421.0,60420.0,0.008]
[1722714976795,0.33252439,60432.0,60418.0,0.165512]
[1722714976796,0.00157439,60431.0,60418.0,0.165512]
[1722714976970,0.00157439,60431.0,60420.0,0.331015]
[1722714976971,0.16575089,60430.0,60420.0,0.331015]
[1722714977208,0.00157439,60429.0,60421.0,0.001]
[1722714977410,0.00157439,60429.0,60428.0,0.1663]
[1722714977619,0.00157439,60429.0,60424.0,0.08291805]
[1722714977620,0.16547,60434.0,60422.0,0.1663]
[1722714977844,0.00157439,60433.0,60422.0,0.1663]
[1722714978012,0.38944139,60435.0,60422.0,0.331802]
[1722714978224,0.38944139,60435.0,60422.0,0.1663]
[1722714978623,0.26575089,60434.0,60417.0,0.08291805]
[1722714978823,0.26575089,60434.0,60421.0,0.165505]
[1722714978824,0.00023616,60422.0,60421.0,0.165505]
[1722714979024,0.00023616,60422.0,60418.0,0.001]
[1722714979225,0.00023616,60422.0,60416.0,0.165517]
[1722714979838,0.00023616,60422.0,60415.0,0.4684]
[1722714980039,0.00023616,60422.0,60419.0,0.08291805]
[1722714980213,0.00023616,60422.0,60421.0,0.496515]
[1722714980414,0.00023616,60422.0,60421.0,0.827525]
[1722714980617,0.00923616,60422.0,60421.0,0.827525]
[1722714980793,0.00023616,60422.0,60421.0,0.827525]
[1722714981011,0.00023616,60422.0,60421.0,0.165505]
[1722714981217,0.00023616,60422.0,60421.0,0.496515]
[1722714981981,0.00323616,60422.0,60421.0,0.827525]
[1722714982190,0.01223616,60422.0,60421.0,0.827525]
[1722714982401,0.00023616,60422.0,60421.0,0.827525]
[1722714982747,0.00423616,60422.0,60421.0,0.497515]
[1722714982960,0.00423616,60422.0,60421.0,0.828525]
[1722714983155,0.00423616,60422.0,60421.0,0.827525]
[1722714983704,0.00023616,60422.0,60421.0,0.833525]
[1722714983880,0.00023616,60422.0,60421.0,0.503515]
[1722714984104,0.00023616,60422.0,60421.0,0.007]
[1722714984636,0.00023616,60422.0,60421.0,0.001]
[1722714985048,0.00123616,60422.0,60421.0,0.007]
[1722714985250,0.54018905,60422.0,60421.0,0.007]
[1722714985554,0.52968705,60422.0,60421.0,0.001]
[1722714985721,0.32198705,60422.0,60421.0,0.001]
[1722714985970,0.32698705,60422.0,60421.0,0.001]
[1722714986172,0.33698705,60422.0,60421.0,0.001]
[1722714986286,0.33198705,60422.0,60415.0,0.4684]
[1722714986669,0.00157439,60421.0,60416.0,0.00437663]
[1722714987001,0.35098705,60422.0,60416.0,0.00437663]
[1722714987364,0.496548,60417.0,60416.0,0.00437663]
[1722714987565,0.99333089,60417.0,60416.0,0.00437663]
[1722714987822,0.496557,60416.0,60415.0,0.4684]
[1722714988029,0.2077,60417.0,60415.0,0.4684]
[1722714988199,0.2077,60417.0,60416.0,0.00389034]
[1722714988402,0.2077,60417.0,60415.0,0.47278065]
[1722714988555,0.33126989,60416.0,60415.0,0.47278065]
[1722714988754,0.33126989,60416.0,60415.0,0.4684]
[1722714989074,0.33126989,60416.0,60415.0,0.4694]
[1722714989453,1.14934589,60416.0,60415.0,0.4684]
[1722714989683,1.14934589,60416.0,60409.0,0.7838]
[1722714989684,0.165535,60411.0,60401.0,0.4684]
[1722714989882,0.00157439,60410.0,60402.0,0.08291805]
[1722714990167,0.00157439,60413.0,60402.0,0.08291805]
[1722714990364,0.16575089,60412.0,60403.0,0.165553]
[1722714990493,0.16575089,60412.0,60402.0,0.08291805]
[1722714990697,0.00157439,60411.0,60409.0,0.08291805]
[1722714990898,0.26732528,60415.0,60409.0,0.08291805]
[1722714991220,0.10157439,60415.0,60409.0,0.08291805]
[1722714991420,0.1,60415.0,60409.0,0.08291805]
[1722714991627,0.014,60416.0,60410.0,0.165534]
[1722714991972,0.004,60411.0,60403.0,0.331104]
[1722714992187,0.004,60411.0,60397.0,0.530237]
[1722714992387,0.01557439,60415.0,60397.0,0.530237]
[1722714992388,0.22397439,60414.0,60398.0,0.166498]
[1722714992592,0.156,60412.0,60409.0,0.001]
[1722714992716,0.165535,60410.0,60409.0,0.001]
[1722714992920,0.66235689,60410.0,60409.0,0.001]
[1722714993119,0.16554,60409.0,60398.0,0.00093]
[1722714993473,0.16732528,60408.0,60398.0,0.00093]
[1722714993993,0.33286628,60408.0,60398.0,0.00093]
[1722714994279,0.16732528,60408.0,60398.0,0.00093]
[1722714994617,0.33286728,60408.0,60398.0,0.00093]
[1722714995272,0.16732528,60408.0,60398.0,0.00093]
[1722714995466,0.17332528,60408.0,60400.0,0.011]
[1722714995666,0.165546,60406.0,60400.0,0.011]
[1722714995870,0.00157439,60405.0,60400.0,0.011]
[1722714996095,0.373252,60404.0,60400.0,0.011]
[1722714996404,0.16575089,60403.0,60400.0,0.011]
[1722714996645,0.16556,60401.0,60400.0,0.011]
[1722714996827,0.33131089,60401.0,60400.0,0.011]
[1722714997042,0.76243089,60401.0,60400.0,0.011]
[1722714997402,1.09355089,60401.0,60400.0,0.011]
[1722714997606,0.78543089,60401.0,60400.0,0.011]
[1722714998236,1.11655089,60401.0,60400.0,0.01]
[1722714998833,1.13055089,60401.0,60400.0,0.01]
[1722714999211,1.14455089,60401.0,60400.0,0.011]
[1722714999413,0.82743089,60401.0,60400.0,0.011]
[1722714999622,1.15855089,60401.0,60400.0,0.011]
[1722715000051,0.82743089,60401.0,60400.0,0.011]
[1722715000251,1.15855089,60401.0,60400.0,0.011]
[1722715000661,0.82743089,60401.0,60400.0,0.011]
[1722715000864,1.15855089,60401.0,60400.0,0.011]
[1722715001279,1.33665089,60401.0,60400.0,0.01183]